fUST/lending_fUST_20240225
["ID","MTS","AMOUNT","RATE_DAILY","PERIOD"]
[315097238,1708811443689,-500.0,0.00020112,2]
[315097239,1708811443700,-500.0,0.00020112,2]
[315097240,1708811443709,-500.0,0.00020112,2]
[315097241,1708811443719,-500.0,0.00020112,2]
[315097242,1708811443728,-684.25,0.00020112,2]
[315097243,1708811443738,-188.19,0.00020112,2]
[315097244,1708811443747,-787.46,0.00020112,2]
[315097245,1708811443757,-500.0,0.00020112,2]
[315097246,1708811443767,-5695.56,0.00020112,2]
[315097247,1708811443776,-733.68,0.00020112,2]
[315097248,1708811443788,-500.0,0.00020112,2]
[315097249,1708811443797,-500.0,0.00020112,2]
[315097250,1708811443807,-821.94,0.00020112,2]
[315097251,1708811443817,-500.0,0.00020112,2]
[315097252,1708811443826,-6511.95,0.00020112,2]
[315097253,1708811443836,-500.0,0.00020112,2]
[315097254,1708811443846,-500.0,0.00020112,2]
[315097255,1708811443855,-500.0,0.00020112,2]
[315097256,1708811443864,-500.0,0.00020112,2]
[315097257,1708811443874,-500.0,0.00020112,2]
[315097258,1708811443883,-603.53,0.00020112,2]
[315097259,1708811443893,-644.03515198,0.00020112,2]
[315097260,1708811443902,-500.0,0.00020112,2]
[315097261,1708811443911,-3284.78,0.00020112,2]
[315097262,1708811443921,-500.0,0.00020112,2]
[315097263,1708811443930,-5628.84,0.00020112,2]
[315097264,1708811443939,-500.0,0.00020112,2]
[315097265,1708811443948,-1312.47,0.00020112,2]
[315097266,1708811443957,-500.0,0.00020112,2]
[315097267,1708811443967,-768.71,0.00020112,2]
[315097268,1708811443975,-1240.38,0.00020112,2]
[315097269,1708811443985,-500.0,0.00020112,2]
[315097270,1708811443995,-500.0,0.00020113,2]
[315097271,1708811444004,-500.0,0.00020113,2]
[315097272,1708811444014,-614.57,0.00020113,2]
[315097273,1708811444024,-500.0,0.00020113,2]
[315097274,1708811444037,-1038.2,0.00020113,2]
[315097275,1708811444046,-500.11809813,0.00020113,2]
[315097276,1708811444056,-503.61017386,0.00020113,2]
[315097277,1708811444065,-510.60834629,0.00020113,2]
[315097278,1708811444075,-502.33326353,0.00020113,2]
[315097279,1708811444084,-500.0,0.00020113,2]
[315097280,1708811444095,-500.0,0.00020113,2]
[315097281,1708811444104,-170.93,0.00020113,2]
[315097282,1708811444113,-218.42275406,0.00020113,2]
[315097283,1708811444122,-500.0,0.00020113,2]
[315097284,1708811444131,-636.16717505,0.00020113,2]
[315097285,1708811444140,-500.0,0.00020113,2]
[315097286,1708811444149,-500.0,0.00020113,2]
[315097287,1708811444158,-500.0,0.00020113,2]
[315097288,1708811444167,-1214.08,0.00020113,2]
[315097289,1708811444176,-624.26,0.00020113,2]
[315097290,1708811444185,-1185.72,0.00020113,2]
[315097291,1708811444194,-329.83424643,0.00020113,2]
[315097292,1708811444203,-500.0,0.00020113,2]
[315097293,1708811444211,-545.07,0.00020113,2]
[315097294,1708811444221,-198.51434703,0.00020113,2]
[315097295,1708811444230,-500.0,0.00020113,2]
[315097296,1708811444239,-500.0,0.00020113,2]
[315097297,1708811444249,-500.0,0.00020113,2]
[315097298,1708811444258,-1043.59,0.00020113,2]
[315097299,1708811444268,-1352.89,0.00020113,2]
[315097300,1708811444277,-500.0,0.00020113,2]
[315097301,1708811444290,-500.0,0.00020113,2]
[315097302,1708811444300,-500.0,0.00020113,2]
[315097303,1708811444309,-4508.58,0.00020113,2]
[315097304,1708811444319,-500.0,0.00020113,2]
[315097305,1708811444329,-1885.33,0.00020113,2]
[315097306,1708811444338,-936.35,0.00020113,2]
[315097307,1708811444348,-500.0,0.00020113,2]
[315097308,1708811444358,-500.0,0.00020114,2]
[315097309,1708811444474,-500.0,0.00020115,2]
[315097310,1708811444484,-500.0,0.00020115,2]
[315097311,1708811444494,-317.58428732,0.00020367,2]
[315097312,1708811444504,-500.0,0.00020386,2]
[315097313,1708811444514,-500.0,0.00020386,2]
[315097314,1708811444523,-500.98901202,0.00020386,2]
[315097315,1708811444535,-500.0,0.00020386,2]
[315097316,1708811444544,-684.25,0.00020386,2]
[315097317,1708811444554,-787.46,0.00020386,2]
[315097318,1708811444564,-500.0,0.00020386,2]
[315097319,1708811444573,-5695.56,0.00020386,2]
[315097320,1708811444587,-733.68,0.00020386,2]
[315097321,1708811444597,-177.18,0.00020386,2]
[315097322,1708811444607,-473.06117471,0.00020386,2]
[315097323,1708811444617,-821.94,0.00020386,2]
[315097324,1708811444628,-500.0,0.00020386,2]
[315097325,1708811444637,-6511.95,0.00020386,2]
[315097326,1708811444646,-500.0,0.00020386,2]
[315097327,1708811444656,-500.0,0.00020386,2]
[315097328,1708811444666,-500.0,0.00020386,2]
[315097329,1708811444676,-500.0,0.00020386,2]
[315097330,1708811444686,-603.53,0.00020386,2]
[315097331,1708811444696,-500.0,0.00020386,2]
[315097332,1708811444705,-3284.78,0.00020386,2]
[315097333,1708811444715,-5628.84,0.00020386,2]
[315097334,1708811444724,-500.0,0.00020386,2]
[315097335,1708811444733,-1312.47,0.00020386,2]
[315097336,1708811444743,-500.0,0.00020386,2]
[315097337,1708811444752,-768.71,0.00020386,2]
[315097338,1708811444762,-1240.38,0.00020386,2]
[315097339,1708811444773,-500.0,0.00020386,2]
[315097340,1708811444786,-500.0,0.00020387,2]
[315097341,1708811444795,-500.0,0.00020387,2]
[315097342,1708811444804,-614.57,0.00020387,2]
[315097343,1708811444813,-500.0,0.00020387,2]
[315097344,1708811444822,-1038.2,0.00020387,2]
[315097345,1708811444831,-500.0,0.00020387,2]
[315097346,1708811444840,-500.0,0.00020387,2]
[315097347,1708811444850,-511.09269431,0.00020387,2]
[315097348,1708811444859,-488.36,0.00020387,2]
[315097349,1708811444869,-1214.08,0.00020387,2]
[315097350,1708811444878,-624.26,0.00020387,2]
[315097351,1708811444887,-1185.72,0.00020387,2]
[315097352,1708811444896,-500.0,0.00020387,2]
[315097353,1708811444906,-500.0,0.00020387,2]
[315097354,1708811444915,-545.07,0.00020387,2]
[315097355,1708811444925,-500.0,0.00020387,2]
[315097356,1708811444934,-500.0,0.00020387,2]
[315097357,1708811444943,-1043.59,0.00020387,2]
[315097358,1708811444952,-500.0,0.00020387,2]
[315097359,1708811444961,-1352.89,0.00020387,2]
[315097360,1708811444970,-179.23,0.00020387,2]
[315097361,1708811444979,-239.91,0.00020387,2]
[315097362,1708811444990,-4508.58,0.00020387,2]
[315097363,1708811444999,-500.0,0.00020387,2]
[315097364,1708811445008,-1885.33,0.00020387,2]
[315097365,1708811445018,-936.35,0.00020387,2]
[315097366,1708811445028,-612.29435103,0.00020387,2]
[315097367,1708811445040,-500.0,0.00020388,2]
[315097368,1708811445049,-500.0,0.00020389,2]
[315097369,1708811445058,-166.666666,0.00020524,2]
[315097370,1708811445067,-500.0,0.00020596,2]
[315097371,1708811445076,-156.301194,0.00020654,2]
[315097372,1708811445088,-169.071365,0.00020654,2]
[315097373,1708811445097,-156.301192,0.00020654,2]
[315097374,1708811445107,-171.571741,0.00020654,2]
[315097375,1708811445116,-156.301192,0.00020654,2]
[315097376,1708811445125,-161.399365,0.00020654,2]
[315097377,1708811445133,-170.062896,0.00020654,2]
[315097378,1708811445143,-500.0,0.0002066,2]
[315097379,1708811445152,-500.0,0.0002066,2]
[315097380,1708811445161,-175.95696323,0.0002066,2]
[315097381,1708811445170,-500.0,0.0002066,2]
[315097382,1708811445179,-684.25,0.0002066,2]
[315097383,1708811445189,-787.46,0.0002066,2]
[315097384,1708811445198,-500.0,0.0002066,2]
[315097385,1708811445208,-5695.56,0.0002066,2]
[315097387,1708811445218,-733.68,0.0002066,2]
[315097388,1708811445227,-821.94,0.0002066,2]
[315097389,1708811445237,-500.0,0.0002066,2]
[315097391,1708811445246,-6511.95,0.0002066,2]
[315097392,1708811445255,-500.0,0.0002066,2]
[315097393,1708811445264,-500.0,0.0002066,2]
[315097394,1708811445274,-500.0,0.0002066,2]
[315097395,1708811445284,-191.93559415,0.0002066,2]
[315097396,1708811445295,-603.53,0.0002066,2]
[315097397,1708811445306,-500.0,0.0002066,2]
[315097398,1708811445315,-3284.78,0.0002066,2]
[315097399,1708811445325,-5628.84,0.0002066,2]
[315097400,1708811445334,-500.0,0.0002066,2]
[315097401,1708811445343,-1312.47,0.0002066,2]
[315097402,1708811445353,-500.0,0.0002066,2]
[315097403,1708811445362,-768.71,0.0002066,2]
[315097405,1708811445372,-1240.38,0.0002066,2]
[315097407,1708811445382,-500.0,0.0002066,2]
[315097408,1708811445391,-500.0,0.00020661,2]
[315097409,1708811445401,-500.0,0.00020661,2]
[315097410,1708811445410,-614.57,0.00020661,2]
[315097411,1708811445420,-1038.2,0.00020661,2]
[315097412,1708811445429,-500.0,0.00020661,2]
[315097413,1708811445439,-500.0,0.00020661,2]
[315097414,1708811445449,-500.0,0.00020661,2]
[315097415,1708811445458,-1214.08,0.00020661,2]
[315097416,1708811445468,-624.26,0.00020661,2]
[315097417,1708811445477,-1185.72,0.00020661,2]
[315097418,1708811445487,-500.0,0.00020661,2]
[315097419,1708811445497,-545.07,0.00020661,2]
[315097420,1708811445507,-500.0,0.00020661,2]
[315097421,1708811445517,-500.0,0.00020661,2]
[315097422,1708811445527,-1043.59,0.00020661,2]
[315097423,1708811445538,-500.56299601,0.00020661,2]
[315097424,1708811445548,-1352.89,0.00020661,2]
[315097425,1708811445558,-4508.58,0.00020661,2]
[315097426,1708811445567,-500.0,0.00020661,2]
[315097427,1708811445577,-1885.33,0.00020661,2]
[315097428,1708811445589,-936.35,0.00020661,2]
[315097429,1708811445599,-500.0,0.00020664,2]
[315097430,1708811445610,-317.58428732,0.00020682,2]
[315097431,1708811445620,-76261.96368499,0.00020727,2]
[315097432,1708811445631,-93161.70301744,0.00020734,2]
[315097433,1708811445640,-500.0,0.00020777,2]
[315097434,1708811445649,-500.0,0.00020777,2]
[315097435,1708811445659,-50000.0,0.00020908,2]
[315097436,1708811445668,-50000.0,0.00020918,2]
[315097437,1708811445678,-500.0,0.00020932,2]
[315097438,1708811445688,-500.0,0.00020932,2]
[315097439,1708811445700,-500.0,0.00020932,2]
[315097440,1708811445710,-500.0,0.00020932,2]
[315097441,1708811445721,-500.0,0.00020932,2]
[315097442,1708811445731,-500.0,0.00020932,2]
[315097443,1708811445740,-500.0,0.00020932,2]
[315097444,1708811445749,-170.69216293,0.00020932,2]
[315097445,1708811445759,-210.65235539,0.00020932,2]
[315097446,1708811445768,-500.0,0.00020932,2]
[315097447,1708811445778,-500.0,0.00020932,2]
[315097448,1708811445790,-500.0,0.00020932,2]
[315097449,1708811445799,-500.0,0.00020932,2]
[315097450,1708811445808,-500.0,0.00020932,2]
[315097451,1708811445817,-500.0,0.00020932,2]
[315097452,1708811445827,-500.0,0.00020932,2]
[315097453,1708811445836,-166.97743424,0.00020932,2]
[315097454,1708811445846,-500.0,0.00020932,2]
[315097455,1708811445857,-500.0,0.00020932,2]
[315097456,1708811445867,-500.0,0.00020932,2]
[315097457,1708811445877,-500.0,0.00020932,2]
[315097458,1708811445887,-424.48498047,0.00020932,2]
[315097459,1708811445897,-500.0,0.00020932,2]
[315097460,1708811445908,-500.0,0.00020932,2]
[315097461,1708811445918,-335.52889667,0.00020932,2]
[315097462,1708811445927,-500.0,0.00020932,2]
[315097463,1708811445938,-500.0,0.00020932,2]
[315097464,1708811445948,-500.0,0.00020932,2]
[315097465,1708811445958,-500.0,0.00020934,2]
[315097466,1708811445968,-153.94,0.00020934,2]
[315097467,1708811445978,-500.0,0.00020934,2]
[315097468,1708811445987,-684.25,0.00020934,2]
[315097469,1708811445997,-787.46,0.00020934,2]
[315097470,1708811446007,-557.64745766,0.00020934,2]
[315097471,1708811446017,-5695.56,0.00020934,2]
[315097472,1708811446027,-733.68,0.00020934,2]
[315097473,1708811446038,-821.94,0.00020934,2]
[315097474,1708811446050,-500.0,0.00020934,2]
[315097475,1708811446060,-6511.95,0.00020934,2]
[315097476,1708811446070,-500.0,0.00020934,2]
[315097477,1708811446078,-500.0,0.00020934,2]
[315097478,1708811446089,-500.0,0.00020934,2]
[315097479,1708811446099,-603.53,0.00020934,2]
[315097480,1708811446109,-500.0,0.00020934,2]
[315097481,1708811446118,-3284.78,0.00020934,2]
[315097482,1708811446127,-5628.84,0.00020934,2]
[315097484,1708811446136,-500.0,0.00020934,2]
[315097485,1708811446146,-1312.47,0.00020934,2]
[315097486,1708811446155,-500.0,0.00020934,2]
[315097487,1708811446165,-768.71,0.00020934,2]
[315097488,1708811446176,-1240.38,0.00020934,2]
[315097489,1708811446188,-500.0,0.00020934,2]
[315097490,1708811446197,-500.0,0.00020935,2]
[315097491,1708811446206,-500.0,0.00020935,2]
[315097492,1708811446216,-614.57,0.00020935,2]
[315097493,1708811446225,-1038.2,0.00020935,2]
[315097494,1708811446234,-550.16,0.00020935,2]
[315097495,1708811446244,-500.0,0.00020935,2]
[315097496,1708811446255,-1214.08,0.00020935,2]
[315097497,1708811446265,-624.26,0.00020935,2]
[315097498,1708811446274,-1185.72,0.00020935,2]
[315097499,1708811446285,-500.0,0.00020935,2]
[315097500,1708811446294,-545.07,0.00020935,2]
[315097501,1708811446304,-500.0,0.00020935,2]
[315097502,1708811446315,-500.0,0.00020935,2]
[315097503,1708811446325,-1043.59,0.00020935,2]
[315097504,1708811446335,-1352.89,0.00020935,2]
[315097505,1708811446344,-4508.58,0.00020935,2]
[315097506,1708811446354,-500.0,0.00020935,2]
[315097507,1708811446364,-1885.33,0.00020935,2]
[315097508,1708811446375,-936.35,0.00020935,2]
[315097509,1708811446387,-214.29920829,0.00020937,2]
[315097510,1708811446397,-166.666666,0.00020973,2]
[315097511,1708811446407,-317.58428732,0.00020997,2]
[315097512,1708811446417,-170.062896,0.00020998,2]
[315097514,1708811446450,-569.840815,0.00021,9]
[315097515,1708811446460,-50000.0,0.00021088,2]
[315097516,1708811446469,-29645.81458894,0.00021097,2]
[315097517,1708811446479,-50000.0,0.00021102,2]
[315097518,1708811446489,-17096.17764894,0.00021109,2]
[315097519,1708811446498,-400.8944386,0.00021124,2]
[315097520,1708811446508,-169.071365,0.00021171,2]
[315097521,1708811446517,-500.0,0.00021208,2]
[315097522,1708811446527,-500.0,0.00021208,2]
[315097523,1708811446539,-684.25,0.00021208,2]
[315097524,1708811446548,-787.46,0.00021208,2]
[315097525,1708811446557,-5695.56,0.00021208,2]
[315097526,1708811446567,-733.68,0.00021208,2]
[315097528,1708811446577,-821.94,0.00021208,2]
[315097529,1708811446596,-631.03387487,0.00021208,2]
[315097530,1708811446609,-6511.95,0.00021208,2]
[315097531,1708811446618,-500.0,0.00021208,2]
[315097532,1708811446628,-500.0,0.00021208,2]
[315097533,1708811446639,-500.0,0.00021208,2]
[315097534,1708811446649,-603.53,0.00021208,2]
[315097535,1708811446659,-500.0,0.00021208,2]
[315097536,1708811446668,-3284.78,0.00021208,2]
[315097537,1708811446678,-5628.84,0.00021208,2]
[315097538,1708811446687,-500.0,0.00021208,2]
[315097539,1708811446697,-1312.47,0.00021208,2]
[315097540,1708811446707,-500.0,0.00021208,2]
[315097541,1708811446717,-768.71,0.00021208,2]
[315097542,1708811446726,-1240.38,0.00021208,2]
[315097543,1708811446735,-500.0,0.00021208,2]
[315097544,1708811446744,-500.0,0.00021209,2]
[315097545,1708811446753,-500.0,0.00021209,2]
[315097546,1708811446762,-614.57,0.00021209,2]
[315097547,1708811446774,-1038.2,0.00021209,2]
[315097548,1708811446783,-500.0,0.00021209,2]
[315097549,1708811446793,-1214.08,0.00021209,2]
[315097550,1708811446802,-624.26,0.00021209,2]
[315097551,1708811446811,-1185.72,0.00021209,2]
[315097552,1708811446821,-470.10312059,0.00021209,2]
[315097553,1708811446832,-545.07,0.00021209,2]
[315097554,1708811446842,-500.0,0.00021209,2]
[315097555,1708811446852,-500.0,0.00021209,2]
[315097556,1708811446863,-1043.59,0.00021209,2]
[315097557,1708811446873,-1352.89,0.00021209,2]
[315097558,1708811446884,-4508.58,0.00021209,2]
[315097559,1708811446894,-362.29314813,0.00021209,2]
[315097560,1708811446904,-1885.33,0.00021209,2]
[315097561,1708811446914,-936.35,0.00021209,2]
[315097562,1708811446923,-153.0,0.0002126,2]
[315097563,1708811446933,-153.0,0.0002126,2]
[315097564,1708811446942,-153.0,0.0002126,2]
[315097565,1708811446952,-153.0,0.0002126,2]
[315097566,1708811446961,-153.0,0.0002126,2]
[315097567,1708811446970,-153.0,0.0002126,2]
[315097568,1708811446979,-851.29680502,0.00021317,2]
[315097569,1708811446990,-170.062896,0.00021343,2]
[315097570,1708811447000,-166.666666,0.00021422,2]
[315097571,1708811447010,-620.6601371,0.00021465,2]
[315097572,1708811447023,-500.0,0.00021482,2]
[315097573,1708811447034,-500.0,0.00021482,2]
[315097574,1708811447043,-684.25,0.00021482,2]
[315097575,1708811447053,-787.46,0.00021482,2]
[315097576,1708811447063,-733.68,0.00021482,2]
[315097577,1708811447073,-5695.56,0.00021482,2]
[315097578,1708811447082,-821.94,0.00021482,2]
[315097579,1708811447092,-6511.95,0.00021482,2]
[315097580,1708811447101,-500.0,0.00021482,2]
[315097581,1708811447111,-500.0,0.00021482,2]
[315097582,1708811447121,-500.0,0.00021482,2]
[315097583,1708811447130,-603.53,0.00021482,2]
[315097584,1708811447139,-500.0,0.00021482,2]
[315097585,1708811447147,-3284.78,0.00021482,2]
[315097586,1708811447157,-5628.84,0.00021482,2]
[315097587,1708811447166,-500.0,0.00021482,2]
[315097588,1708811447174,-1312.47,0.00021482,2]
[315097589,1708811447184,-500.0,0.00021482,2]
[315097590,1708811447193,-768.71,0.00021482,2]
[315097591,1708811447202,-1240.38,0.00021482,2]
[315097592,1708811447211,-500.0,0.00021482,2]
[315097593,1708811447220,-516.2,0.00021483,2]
[315097594,1708811447230,-614.57,0.00021483,2]
[315097595,1708811447239,-1038.2,0.00021483,2]
[315097596,1708811447248,-221.81,0.00021483,2]
[315097597,1708811447257,-1214.08,0.00021483,2]
[315097598,1708811447267,-624.26,0.00021483,2]
[315097599,1708811447276,-1185.72,0.00021483,2]
[315097600,1708811447286,-545.07,0.00021483,2]
[315097601,1708811447295,-500.0,0.00021483,2]
[315097602,1708811447305,-500.0,0.00021483,2]
[315097603,1708811447314,-1043.59,0.00021483,2]
[315097604,1708811447324,-1352.89,0.00021483,2]
[315097605,1708811447333,-4508.58,0.00021483,2]
[315097606,1708811447342,-1885.33,0.00021483,2]
[315097607,1708811447352,-936.35,0.00021483,2]
[315097608,1708811447361,-41133.4177264,0.000215,2]
[315097609,1708811447370,-306.0,0.00021507,2]
[315097610,1708811447379,-386.1233369,0.00021507,2]
[315097611,1708811447389,-153.0,0.00021507,2]
[315097612,1708811447399,-50000.0,0.00021663,2]
[315097613,1708811447408,-50000.0,0.00021677,2]
[315097614,1708811447418,-169.071365,0.00021687,2]
[315097615,1708811447427,-171.571741,0.00021687,2]
[315097616,1708811447436,-161.399365,0.00021687,2]
[315097617,1708811447446,-170.062896,0.00021687,2]
[315097618,1708811447455,-500.0,0.00021756,2]
[315097619,1708811447464,-684.25,0.00021756,2]
[315097620,1708811447474,-787.46,0.00021756,2]
[315097621,1708811447483,-733.68,0.00021756,2]
[315097622,1708811447492,-5695.56,0.00021756,2]
[315097623,1708811447502,-821.94,0.00021756,2]
[315097624,1708811447512,-6511.95,0.00021756,2]
[315097625,1708811447521,-500.0,0.00021756,2]
[315097626,1708811447531,-165.21,0.00021756,2]
[315097627,1708811447542,-500.0,0.00021756,2]
[315097628,1708811447551,-603.53,0.00021756,2]
[315097629,1708811447560,-500.0,0.00021756,2]
[315097630,1708811447570,-3284.78,0.00021756,2]
[315097631,1708811447581,-5628.84,0.00021756,2]
[315097632,1708811447591,-500.0,0.00021756,2]
[315097633,1708811447600,-1312.47,0.00021756,2]
[315097634,1708811447610,-500.0,0.00021756,2]
[315097635,1708811447622,-768.71,0.00021756,2]
[315097636,1708811447632,-1240.38,0.00021756,2]
[315097637,1708811447641,-500.0,0.00021756,2]
[315097638,1708811447651,-614.57,0.00021757,2]
[315097639,1708811447661,-1038.2,0.00021757,2]
[315097640,1708811447671,-1214.08,0.00021757,2]
[315097641,1708811447681,-624.26,0.00021757,2]
[315097642,1708811447691,-1185.72,0.00021757,2]
[315097643,1708811447700,-545.07,0.00021757,2]
[315097644,1708811447710,-500.0,0.00021757,2]
[315097645,1708811447720,-500.0,0.00021757,2]
[315097646,1708811447729,-1043.59,0.00021757,2]
[315097647,1708811447739,-1352.89,0.00021757,2]
[315097648,1708811447748,-4401.84445579,0.00021757,2]
[315097649,1708811447868,-106.73554421,0.00021757,2]
[315097650,1708811447880,-688.51720186,0.00021757,2]
[315097651,1708811448333,-718.93,0.00019564,2]
[315097652,1708811448343,-500.0,0.00019564,2]
[315097653,1708811448353,-681.72485003,0.00019823,3]
[315097654,1708811448364,-1242.03514997,0.00019823,3]
[315097655,1708811448375,-500.0,0.00019833,2]
[315097656,1708811448385,-718.93,0.00019838,2]
[315097657,1708811448394,-500.0,0.00019838,2]
[315097658,1708811448405,-500.0,0.00020112,2]
[315097659,1708811448415,-718.93,0.00020112,2]
[315097660,1708811448425,-500.0,0.00020112,2]
[315097661,1708811448434,-718.93,0.00020386,2]
[315097662,1708811448444,-500.0,0.00020386,2]
[315097663,1708811448454,-718.93,0.0002066,2]
[315097664,1708811448464,-500.0,0.0002066,2]
[315097665,1708811448473,-718.93,0.00020934,2]
[315097666,1708811448483,-500.0,0.00020934,2]
[315097667,1708811448493,-718.93,0.00021208,2]
[315097668,1708811448502,-500.0,0.00021208,2]
[315097669,1708811448513,-153.0,0.0002126,2]
[315097670,1708811448523,-718.93,0.00021482,2]
[315097671,1708811448533,-500.0,0.00021482,2]
[315097672,1708811448545,-718.93,0.00021756,2]
[315097673,1708811448555,-1196.81279814,0.00021757,2]
[315097674,1708811448565,-936.35,0.00021757,2]
[315097675,1708811448575,-1319.71576795,0.00021794,2]
[315097676,1708811448588,-763.59512221,0.00021794,2]
[315097677,1708811448600,-6646.3751115,0.00021794,2]
[315097678,1708811448610,-200.5294442,0.00021946,2]
[315097679,1708811448623,-200.5294442,0.00021946,2]
[315097680,1708811448633,-327.18502808,0.00022,2]
[315097681,1708811448643,-500.0,0.0002203,2]
[315097682,1708811448653,-684.25,0.0002203,2]
[315097683,1708811448663,-787.46,0.0002203,2]
[315097684,1708811448673,-733.68,0.0002203,2]
[315097685,1708811448683,-5695.56,0.0002203,2]
[315097686,1708811448693,-821.94,0.0002203,2]
[315097687,1708811448704,-6511.95,0.0002203,2]
[315097688,1708811448714,-500.0,0.0002203,2]
[315097689,1708811448724,-500.0,0.0002203,2]
[315097690,1708811448734,-603.53,0.0002203,2]
[315097691,1708811448745,-307.81,0.0002203,2]
[315097692,1708811448755,-3284.78,0.0002203,2]
[315097693,1708811448765,-5628.84,0.0002203,2]
[315097694,1708811448774,-500.0,0.0002203,2]
[315097695,1708811448784,-1312.47,0.0002203,2]
[315097696,1708811448795,-500.0,0.0002203,2]
[315097697,1708811448805,-768.71,0.0002203,2]
[315097698,1708811448815,-1240.38,0.0002203,2]
[315097699,1708811448826,-500.0,0.0002203,2]
[315097700,1708811448835,-718.93,0.0002203,2]
[315097701,1708811448845,-614.57,0.00022031,2]
[315097702,1708811448855,-1214.08,0.00022031,2]
[315097703,1708811448865,-624.26,0.00022031,2]
[315097704,1708811448874,-1185.72,0.00022031,2]
[315097705,1708811448884,-545.07,0.00022031,2]
[315097706,1708811448894,-348.97463723,0.00022031,2]
[315097707,1708811448982,-1043.59,0.00022031,2]
[315097708,1708811449010,-1352.89,0.00022031,2]
[315097709,1708811449019,-4508.58,0.00022031,2]
[315097710,1708811449028,-1885.33,0.00022031,2]
[315097711,1708811449037,-936.35,0.00022031,2]
[315097712,1708811449047,-5000.0,0.00022035,2]
[315097713,1708811449056,-153.0,0.00022082,2]
[315097714,1708811449067,-153.0,0.00022082,2]
[315097715,1708811449076,-50000.0,0.00022182,2]
[315097716,1708811449085,-153.0,0.00022212,2]
[315097717,1708811449095,-153.0,0.00022212,2]
[315097718,1708811449105,-153.0,0.00022212,2]
[315097719,1708811449114,-153.0,0.00022212,2]
[315097720,1708811449123,-153.0,0.00022212,2]
[315097721,1708811449133,-4874.90339141,0.0002225,2]
[315097722,1708811449145,-429.55812162,0.0002225,2]
[315097723,1708811449155,-3140.93543666,0.00022275,2]
[315097724,1708811449964,-163.21476206,0.00021756,2]
[315097725,1708811449976,-336.78523794,0.00021756,2]
[315097726,1708811449986,-500.0,0.0002203,2]
[315097727,1708811449995,-636.1066423,0.00022275,2]
[315097728,1708811450004,-927.61802237,0.00022275,3]
[315097729,1708811450013,-2117.55818492,0.00022275,2]
[315097730,1708811450022,-5000.0,0.00022275,2]
[315097731,1708811450031,-1221.15554635,0.00022275,2]
[315097732,1708811450042,-11596.89202347,0.000223,3]
[315097733,1708811450051,-500.0,0.00022304,2]
[315097734,1708811450060,-684.25,0.00022304,2]
[315097735,1708811450068,-787.46,0.00022304,2]
[315097736,1708811450077,-733.68,0.00022304,2]
[315097737,1708811450087,-5695.56,0.00022304,2]
[315097738,1708811450096,-821.94,0.00022304,2]
[315097739,1708811450105,-6511.95,0.00022304,2]
[315097740,1708811450114,-500.0,0.00022304,2]
[315097741,1708811450124,-500.0,0.00022304,2]
[315097742,1708811450133,-603.53,0.00022304,2]
[315097743,1708811450143,-3284.78,0.00022304,2]
[315097744,1708811450152,-5628.84,0.00022304,2]